bitfinex/quotes_SOLUSD_20260220
["timestamp","ask_amount","ask_price","bid_price","bid_amount"]
[1771610121330,4.5,84.471,84.397,148.10952994]
[1771610121331,4.5,84.47,84.404,0.28432314]
[1771610121526,4.5,84.47,84.404,0.42648471]
[1771610121741,4.5,84.47,84.41,0.28432314]
[1771610121937,4.5,84.47,84.415,0.14216157]
[1771610122632,4.5,84.468,84.415,0.14216157]
[1771610123345,4.5,84.489,84.416,0.28432314]
[1771610123740,4.5,84.488,84.416,0.28432314]
[1771610124158,4.5,84.488,84.418,5.78734659]
[1771610124341,4.5,84.486,84.418,0.42648471]
[1771610125235,4.5,84.486,84.421,4.12031873]
[1771610125552,18.01063037,84.53,84.44,3.97815716]
[1771610125750,18.01063037,84.54,84.457,4.38955415]
[1771610125930,18.01063037,84.53,84.468,0.42648471]
[1771610126129,3.69383402,84.557,84.469,11.8386627]
[1771610126130,18.01063037,84.52,84.469,11.8386627]
[1771610126343,18.01063037,84.52,84.469,41.43531946]
[1771610126952,18.01063037,84.51,84.457,11.84034479]
[1771610127346,18.01063037,84.52,84.458,0.42648471]
[1771610127649,4.19615852,84.509,84.457,41.44120676]
[1771610128154,4.19615852,84.507,84.457,29.60086197]
[1771610128640,4.19615852,84.507,84.458,4.81603886]
[1771610128948,4.19615852,84.507,84.457,29.60086197]
[1771610128949,4.19615852,84.519,84.469,0.28432314]
[1771610129155,4.19615852,84.519,84.474,4.38955415]
[1771610129353,18.01063037,84.54,84.477,4.67387729]
[1771610129658,4.19615852,84.539,84.481,0.14216157]
[1771610129852,4.19615852,84.539,84.482,0.28432314]
[1771610130156,4.19615852,84.537,84.484,0.14216157]
[1771610130552,4.19615852,84.537,84.484,4.81603886]
[1771610131261,18.01063037,84.56,84.484,4.81603886]
[1771610131479,18.01063037,84.57,84.491,4.67387729]
[1771610131633,59.09886056,84.604,84.506,0.42648471]
[1771610131634,18.01063037,84.56,84.506,0.42648471]
[1771610131960,18.01063037,84.57,84.514,0.14216157]
[1771610132259,18.01063037,84.56,84.486,4.38955415]
[1771610132438,0.14216157,84.592,84.496,0.14216157]
[1771610132637,18.01063037,84.54,84.487,41.42649164]
[1771610132955,18.01063037,84.53,84.487,41.42649164]
[1771610133155,18.01063037,84.52,84.487,11.83614047]
[1771610133358,4.19615852,84.519,84.475,11.97998341]
[1771610133654,4.19615852,84.519,84.475,11.83782184]
[1771610133857,4.19615852,84.519,84.476,4.38955415]
[1771610134264,4.19615852,84.537,84.479,4.81603886]
[1771610134453,4.19615852,84.529,84.479,4.81603886]
[1771610134637,11.82837593,84.543,84.479,4.81603886]
[1771610134838,47.28043423,84.602,84.488,3.69383402]
[1771610134839,4.19615852,84.569,84.488,3.69383402]
[1771610135038,4.19615852,84.569,84.506,0.28432314]
[1771610135348,4.19615852,84.569,84.516,4.38955415]
[1771610136367,4.19615852,84.559,84.494,4.38955415]
[1771610136538,4.19615852,84.559,84.515,0.14216157]
[1771610138155,4.19615852,84.559,84.516,4.22449465]
[1771610138462,4.19615852,84.559,84.518,4.22449465]
[1771610139959,4.2941649,84.558,84.518,4.22449465]
[1771610140364,4.2941649,84.558,84.517,41.41178697]
[1771610140561,4.2941649,84.558,84.512,4.22449465]
[1771610140745,4.2941649,84.558,84.515,4.36665622]
[1771610142361,4.2941649,84.549,84.507,11.83333925]
[1771610142561,4.2941649,84.547,84.497,4.22449465]
[1771610142744,4.2941649,84.558,84.497,4.22449465]
[1771610142939,4.2941649,84.558,84.496,29.58694877]
[1771610142940,4.2941649,84.558,84.512,0.14216157]
[1771610143144,4.2941649,84.558,84.513,4.36665622]
[1771610143543,4.2941649,84.558,84.503,4.36665622]
[1771610144665,4.2941649,84.558,84.511,4.22449465]
[1771610144864,16.12050689,84.557,84.513,4.22449465]
[1771610145048,4.2941649,84.556,84.516,0.14216157]
[1771610145363,4.2941649,84.556,84.506,41.41717746]
[1771610146442,4.2941649,84.556,84.507,4.22449465]
[1771610147069,4.2941649,84.578,84.511,4.22449465]
[1771610147246,4.2941649,84.559,84.508,41.41619727]
[1771610147568,4.2941649,84.559,84.508,11.83319922]
[1771610147758,195.06774169,84.586,84.508,11.83319922]
[1771610147759,4.2941649,84.549,84.508,11.83319922]
[1771610148065,4.2941649,84.549,84.508,16.05769387]
[1771610149165,4.2941649,84.547,84.498,4.22449465]
[1771610150554,4.2941649,84.545,84.5,4.22449465]
[1771610151551,4.2941649,84.539,84.499,41.42060851]
[1771610152262,4.2941649,84.539,84.44,47.37089045]
[1771610152263,5.36086188,84.612,84.489,264.61342097]
[1771610152449,11.81683899,84.625,84.5,4.22449465]
[1771610152774,11.81683899,84.625,84.497,201.47489791]
[1771610152775,4.2941649,84.619,84.527,4.22449465]
[1771610152971,4.2941649,84.619,84.552,4.22449465]
[1771610153274,4.2941649,84.619,84.566,4.22449465]
[1771610153767,4.2941649,84.619,84.576,4.22449465]
[1771610154358,4.2941649,84.619,84.562,0.28432314]
[1771610154566,4.2941649,84.617,84.564,0.42648471]
[1771610155468,4.2941649,84.617,84.564,4.65097936]
[1771610156468,11.81781654,84.618,84.564,4.65097936]
[1771610156469,4.2941649,84.609,84.564,4.22449465]
[1771610156656,4.2941649,84.607,84.565,11.8252232]
[1771610158074,4.2941649,84.607,84.566,4.36665622]
[1771610158382,4.2941649,84.617,84.572,4.22449465]
[1771610158576,4.2941649,84.617,84.576,4.22449465]
[1771610158753,4.2941649,84.617,84.578,4.22449465]
[1771610158954,4.2941649,84.617,84.583,0.28432314]
[1771610159160,4.2941649,84.617,84.586,0.14216157]
[1771610159562,4.2941649,84.617,84.586,4.36665622]
[1771610159767,4.2941649,84.638,84.586,4.36665622]
[1771610160078,4.2941649,84.638,84.577,41.38240892]
[1771610160079,4.2941649,84.629,84.577,45.60690357]
[1771610160277,4.2941649,84.629,84.54,47.31476795]
[1771610160278,4.2941649,84.609,84.566,11.82508336]
[1771610160489,4.2941649,84.599,84.556,11.82648185]
[1771610160774,135.87117048,84.639,84.547,29.56906158]
[1771610160775,4.2941649,84.589,84.547,29.56906158]
[1771610161277,4.2941649,84.588,84.547,29.56906158]
[1771610161462,4.2941649,84.579,84.545,11.82802058]
[1771610161680,4.2941649,84.579,84.514,5.36086188]
[1771610161681,4.2941649,84.559,84.515,16.05671378]
[1771610162176,4.2941649,84.549,84.515,11.83221913]
[1771610162376,4.2941649,84.549,84.504,4.22449465]
[1771610162571,4.2941649,84.539,84.506,11.83343574]
[1771610162772,4.2941649,84.537,84.5,11.83431952]
[1771610163153,4.2941649,84.561,84.505,4.22449465]
[1771610163358,4.2941649,84.559,84.516,0.14216157]
[1771610163663,4.2941649,84.559,84.517,4.22449465]
[1771610164058,11.8249906,84.648,84.5,41.42011833]
[1771610164059,4.2941649,84.549,84.504,4.22449465]
[1771610164263,4.2941649,84.549,84.506,4.22449465]
[1771610164491,41.39030118,84.561,84.5,11.83431952]
[1771610164492,4.2941649,84.539,84.5,11.83431952]
[1771610164779,4.2941649,84.529,84.495,11.8349007]
[1771610165354,4.2941649,84.549,84.496,4.22449465]
[1771610165981,4.2941649,84.545,84.496,4.22449465]
[1771610166177,4.2941649,84.529,84.495,11.8349007]
[1771610166675,4.06555542,84.519,84.485,11.83637365]
[1771610166875,4.06555542,84.519,84.451,47.36461521]
[1771610166876,4.06555542,84.529,84.487,11.83614047]
[1771610167079,4.41934931,84.519,84.487,11.83614047]
[1771610167579,41.4059082,84.529,84.467,29.59726535]
[1771610167580,4.41934931,84.509,84.467,29.59726535]
[1771610167771,4.41934931,84.499,84.469,11.8386627]
[1771610168082,4.41934931,84.519,84.47,4.15052186]
[1771610168262,4.41934931,84.528,84.484,0.42648471]
[1771610168463,4.41934931,84.528,84.483,4.15052186]
[1771610169157,4.41934931,84.539,84.487,4.15052186]
[1771610169364,4.41934931,84.537,84.487,4.15052186]
[1771610169761,4.41934931,84.529,84.487,4.15052186]
[1771610171260,4.41934931,84.529,84.489,4.15052186]
[1771610171878,4.41934931,84.527,84.489,4.15052186]
[1771610172660,11.52712336,84.54,84.488,41.42600131]
[1771610172661,4.41934931,84.539,84.496,0.14216157]
[1771610173282,4.41934931,84.537,84.496,41.56424071]
[1771610174385,4.41934931,84.537,84.496,11.83487975]
[1771610174685,4.41934931,84.537,84.457,47.36133025]
[1771610174686,4.41934931,84.509,84.442,29.60588857]
[1771610174985,4.41934931,84.489,84.443,4.15052186]
[1771610175370,4.41934931,84.487,84.446,4.15052186]
[1771610177470,4.41934931,84.487,84.448,4.15052186]
[1771610177862,11.52712336,84.5,84.448,4.15052186]
[1771610177863,4.41934931,84.485,84.448,4.15052186]
[1771610179066,4.41934931,84.499,84.455,0.14216157]
[1771610179585,4.41934931,84.488,84.455,11.98278675]
[1771610180087,4.41934931,84.488,84.455,41.58434971]
[1771610181287,4.41934931,84.518,84.462,4.15052186]
[1771610181465,4.41934931,84.518,84.466,4.15052186]
[1771610181672,4.41934931,84.509,84.466,10.3]
[1771610181886,4.41934931,84.509,84.465,11.83922334]
[1771610181887,4.41934931,84.499,84.467,10.3]
[1771610182485,3.49,85.786,84.465,11.83922334]
[1771610182486,4.41934931,84.519,84.469,0.14216157]
[1771610182670,4.41934931,84.519,84.476,4.15052186]
[1771610183579,4.41934931,84.518,84.478,4.15052186]
[1771610184215,4.41934931,84.518,84.472,11.83822944]
[1771610184379,4.41934931,84.489,84.436,4.15052186]
[1771610184872,4.41934931,84.489,84.45,4.15052186]
[1771610185070,4.41934931,84.509,84.456,4.15052186]
[1771610186176,4.41934931,84.489,84.434,11.84357012]
[1771610186380,4.41934931,84.489,84.442,29.60593931]
[1771610186693,4.41934931,84.489,84.443,4.15052186]
[1771610186870,4.41934931,84.489,84.448,4.15052186]
[1771610187074,4.41934931,84.489,84.449,0.14216157]
[1771610187394,4.41934931,84.489,84.45,0.28432314]
[1771610188192,4.41934931,84.489,84.435,10.3]
[1771610188193,4.41934931,84.519,84.467,4.15052186]
[1771610188497,4.41934931,84.519,84.469,0.42648471]
[1771610188897,4.41934931,84.509,84.468,4.15052186]
[1771610189088,4.41934931,84.499,84.451,41.44415104]
[1771610189292,11.54549836,84.5,84.451,41.44415104]
[1771610189293,4.41934931,84.489,84.451,41.44415104]
[1771610189797,4.41934931,84.489,84.452,0.14216157]
[1771610190197,4.41934931,84.487,84.452,0.14216157]
[1771610190395,11.54549836,84.48,84.446,11.84188712]
[1771610190698,4.41934931,84.481,84.447,4.15052186]
[1771610191082,4.41934931,84.481,84.437,29.6077568]
[1771610191083,11.54549836,84.47,84.437,11.84314933]
[1771610191277,4.41934931,84.469,84.437,11.84314933]
[1771610192004,4.41934931,84.479,84.44,4.15052186]
[1771610192215,4.41934931,84.485,84.444,4.15052186]
[1771610192378,4.41934931,84.479,84.443,11.84230782]
[1771610192904,4.41934931,84.479,84.444,4.15052186]
[1771610193096,4.41934931,84.479,84.443,11.84230782]
[1771610193402,4.41934931,84.479,84.383,47.40279847]
[1771610193403,4.41934931,84.469,84.425,11.84483269]
[1771610193785,4.41934931,84.459,84.425,11.84483269]
[1771610193987,4.41934931,84.459,84.413,11.84651653]
[1771610194202,4.41934931,84.457,84.413,11.84651653]
[1771610195191,4.41934931,84.449,84.405,4.15052186]
[1771610196109,4.41934931,84.449,84.395,4.15052186]
[1771610196309,47.34986157,84.478,84.395,4.15052186]
[1771610196310,4.41934931,84.439,84.395,4.15052186]
[1771610196691,4.41934931,84.429,84.382,41.47804033]
[1771610196893,4.41934931,84.419,84.369,4.15052186]
[1771610197206,4.41934931,84.419,84.377,4.29982253]
[1771610197411,4.30496058,84.439,84.393,4.29982253]
[1771610198307,41.44562333,84.448,84.394,45.77196509]
[1771610198308,4.30496058,84.437,84.394,45.77196509]
[1771610198506,4.30496058,84.437,84.395,4.29982253]
[1771610199223,4.30496058,84.437,84.394,41.47214256]
[1771610199415,4.30496058,84.437,84.395,4.29982253]
[1771610200693,47.35596613,84.467,84.395,4.29982253]
[1771610200694,4.30496058,84.435,84.396,41.47115976]
[1771610200893,4.30496058,84.435,84.396,45.77098229]
[1771610201295,4.30496058,84.429,84.385,11.85044735]
[1771610201511,4.30496058,84.419,84.375,11.85185185]
[1771610202011,4.30496058,84.419,84.375,41.48148147]
[1771610202214,4.30496058,84.419,84.375,45.781304]
[1771610202416,4.30496058,84.419,84.376,4.29982253]
[1771610202619,4.30496058,84.419,84.375,11.85185185]
[1771610202918,4.30496058,84.417,84.375,29.62962962]
[1771610205021,4.30496058,84.415,84.376,11.85171138]
[1771610205597,4.30496058,84.409,84.35,0.2]
[1771610205798,41.46133433,84.416,84.323,41.50706212]
[1771610205799,4.30496058,84.379,84.323,41.50706212]
[1771610206025,88.987878,84.416,84.326,3.69383402]
[1771610206026,4.30496058,84.389,84.326,3.69383402]
[1771610206336,4.30496058,84.379,84.323,41.50706212]
[1771610206497,4.30496058,84.369,84.323,41.50706212]
[1771610207222,4.30496058,84.369,84.327,0.28432314]
[1771610207420,153.99924183,84.416,84.327,0.28432314]
[1771610207421,4.30496058,84.383,84.328,0.14216157]
[1771610207600,4.30496058,84.383,84.329,10.58432314]
[1771610207805,4.30496058,84.449,84.338,4.29982253]
[1771610208003,4.30496058,84.449,84.343,4.72630724]
[1771610208316,4.30496058,84.449,84.33,8.58341852]
[1771610208317,4.30496058,84.439,84.375,4.29982253]
[1771610208497,4.30496058,84.439,84.389,4.29982253]
[1771610208697,4.30496058,84.439,84.405,4.29982253]
[1771610209022,4.30496058,84.439,84.404,0.42648471]
[1771610209023,4.30496058,84.467,84.414,11.84637619]
[1771610209320,4.30496058,84.467,84.414,45.7621392]
[1771610210217,4.30496058,84.467,84.415,4.29982253]
[1771610210826,4.30496058,84.459,84.405,11.84763935]
[1771610212418,0.14216157,84.486,84.403,29.61962336]
[1771610212419,4.30496058,84.457,84.404,4.72630724]
[1771610213021,4.30496058,84.479,84.415,4.29982253]
[1771610213320,4.30496058,84.479,84.407,0.14216157]
[1771610213321,4.30496058,84.459,84.407,0.14216157]
[1771610213519,4.30496058,84.459,84.405,0.14216157]
[1771610213716,4.30496058,84.459,84.407,0.42648471]
[1771610214515,11.84020459,84.458,84.408,41.46526395]
[1771610214725,4.30496058,84.457,84.409,0.42648471]
[1771610215228,4.30496058,84.449,84.408,11.84721827]
[1771610215809,11.54549836,84.44,84.398,11.848622]
[1771610216008,4.30496058,84.439,84.388,11.85002607]
[1771610216322,4.30496058,84.439,84.337,47.42871885]
[1771610216323,4.30496058,84.429,84.378,11.85143046]
[1771610216512,4.30496058,84.419,84.378,11.85143046]
[1771610216709,4.30496058,84.409,84.371,10.3]
[1771610217025,4.30496058,84.409,84.362,0.14216157]
[1771610218020,4.30496058,84.409,84.36,4.29982253]
[1771610218229,4.30496058,84.409,84.362,4.29982253]
[1771610218604,4.30496058,84.409,84.367,0.42648471]
[1771610218837,4.30496058,84.409,84.371,4.29982253]
[1771610219043,4.30496058,84.421,84.382,0.14216157]
[1771610219212,4.30496058,84.421,84.368,0.14216157]
[1771610219213,4.30496058,84.419,84.369,0.42648471]
[1771610219528,4.30496058,84.419,84.369,4.72630724]
[1771610220632,4.30496058,84.417,84.371,0.42648471]
[1771610220826,59.20737575,84.449,84.371,0.42648471]
[1771610220827,4.30496058,84.428,84.371,4.72630724]
[1771610221135,4.30496058,84.437,84.381,4.29982253]
[1771610221312,4.30496058,84.437,84.39,0.42648471]
[1771610221505,4.30496058,84.437,84.397,4.72630724]
[1771610221918,4.30496058,84.419,84.371,4.29982253]
[1771610222127,4.30496058,84.438,84.377,4.29982253]
[1771610222308,4.30496058,84.438,84.396,4.29982253]
[1771610222513,11.84195486,84.446,84.399,4.72630724]
[1771610222917,4.30496058,84.46,84.404,5.36086188]
[1771610223115,4.30496058,84.46,84.414,0.28432314]
[1771610223324,4.30496058,84.46,84.423,0.14216157]
[1771610223543,11.83852255,84.47,84.431,0.42648471]
[1771610223710,4.30496058,84.469,84.431,0.42648471]
[1771610224611,4.30496058,84.469,84.415,0.42648471]
[1771610224817,4.30496058,84.469,84.415,4.72630724]
[1771610225120,4.30496058,84.467,84.417,0.42648471]
[1771610225316,4.30496058,84.459,84.416,11.84609552]
[1771610227218,4.12456745,84.457,84.406,0.42648471]
[1771610228336,4.12456745,84.449,84.401,11.84820085]
[1771610228521,11.54549836,84.44,84.401,11.84820085]
[1771610228829,4.12456745,84.429,84.401,11.84820085]
[1771610229034,4.12456745,84.429,84.391,12.27608952]
[1771610229249,4.12456745,84.427,84.391,12.27608952]
[1771610229419,4.12456745,84.427,84.391,11.84960481]
[1771610230017,4.12456745,84.435,84.392,4.53849756]
[1771610230239,4.12456745,84.429,84.392,4.53849756]
[1771610230938,4.12456745,84.429,84.392,0.14216157]
[1771610231622,4.12456745,84.427,84.392,0.14216157]
[1771610232413,4.12456745,84.427,84.383,4.8228207]
[1771610232615,4.12456745,84.427,84.392,0.14216157]
[1771610232817,4.12456745,84.451,84.394,4.39633599]
[1771610233030,41.43482893,84.47,84.404,4.39633599]
[1771610233031,4.12456745,84.449,84.404,4.39633599]
[1771610233251,4.12456745,84.429,84.395,10.3]
[1771610233423,4.12456745,84.429,84.396,10.3]
[1771610233735,4.12456745,84.429,84.384,0.14216157]
[1771610233924,4.12456745,84.438,84.393,4.39633599]
[1771610234120,4.12456745,84.448,84.406,0.28432314]
[1771610234333,4.12456745,84.448,84.412,0.14216157]
[1771610234512,4.12456745,84.448,84.412,4.53849756]
[1771610234716,4.12456745,84.459,84.421,0.42648471]
[1771610235420,15.96463185,84.459,84.421,0.42648471]
[1771610235738,4.12456745,84.458,84.421,0.42648471]
[1771610236231,51.03368546,84.496,84.385,195.53238132]
[1771610236232,4.12456745,84.456,84.41,4.39633599]
[1771610236439,4.12456745,84.456,84.411,0.42648471]
[1771610236817,4.12456745,84.449,84.411,11.84679721]
[1771610238033,4.12456745,84.447,84.402,4.53849756]
[1771610238538,4.12456745,84.439,84.402,0.14216157]
[1771610239248,4.12456745,84.439,84.403,4.39633599]
[1771610239533,4.12456745,84.459,84.422,0.14216157]
[1771610239937,4.12456745,84.459,84.422,4.53849756]
[1771610240123,15.67773874,84.47,84.426,4.39633599]
[1771610240327,3.49,85.715,84.439,0.14216157]
[1771610240328,4.12456745,84.488,84.439,0.14216157]
[1771610240543,4.12456745,84.488,84.444,4.39633599]
[1771610241935,4.12456745,84.488,84.454,4.39633599]
[1771610242243,4.12456745,84.488,84.455,16.23696117]
[1771610242739,4.12456745,84.488,84.456,4.39633599]
[1771610242925,4.12456745,84.486,84.45,11.84129395]
[1771610243138,4.12456745,84.486,84.452,0.14216157]
[1771610244341,15.67773874,84.48,84.452,11.98320737]
[1771610244646,15.67773874,84.48,84.452,41.58582187]
[1771610245147,4.12456745,84.48,84.452,41.58582187]
[1771610246143,4.12456745,84.482,84.42,4.39633599]
[1771610246346,4.12456745,84.469,84.424,4.68065913]
[1771610246523,41.42845305,84.483,84.419,11.84567455]
[1771610246524,4.12456745,84.449,84.419,11.84567455]
[1771610246732,4.12456745,84.439,84.411,11.84679721]
[1771610247237,11.55317129,84.48,84.411,41.46379025]
[1771610247238,4.12456745,84.449,84.411,41.46379025]
[1771610247424,4.12456745,84.449,84.411,11.84679721]
[1771610247623,11.55317129,84.46,84.413,4.39633599]
[1771610247834,11.55317129,84.46,84.411,41.46379025]
[1771610247835,4.12456745,84.464,84.419,4.39633599]
[1771610248041,4.12456745,84.464,84.422,0.42648471]
[1771610248347,41.42845305,84.483,84.429,4.39633599]
[1771610248348,4.12456745,84.474,84.429,4.39633599]
[1771610248843,4.12456745,84.474,84.431,4.39633599]
[1771610249023,4.12456745,84.474,84.432,10.3]
[1771610249227,4.12456745,84.484,84.433,15.1228207]
[1771610249424,4.12456745,84.484,84.443,4.39633599]
[1771610249634,4.12456745,84.484,84.434,5.36086188]
[1771610249635,11.55317129,84.49,84.449,4.39633599]
[1771610249841,4.12456745,84.494,84.454,4.39633599]
[1771610250040,4.12456745,84.494,84.452,0.42648471]
[1771610250041,4.12456745,84.492,84.45,10.3]
[1771610250242,4.12456745,84.488,84.451,11.84118601]
[1771610250754,4.12456745,84.479,84.451,11.84118601]
[1771610251045,4.12456745,84.469,84.451,11.84118601]
[1771610251348,4.12456745,84.469,84.452,10.3]
[1771610251549,4.12456745,84.469,84.451,11.84118601]
[1771610252332,4.12456745,84.469,84.436,0.42648471]
[1771610253365,4.12456745,84.469,84.371,4.47463949]
[1771610253548,4.12456745,84.469,84.283,32.12189061]
[1771610253549,4.12456745,84.429,84.374,4.47463949]
[1771610253857,11.55317129,84.41,84.374,4.47463949]
[1771610254551,23.40018195,84.41,84.376,4.47463949]
[1771610254749,4.12456745,84.419,84.378,4.47463949]
[1771610255258,11.55317129,84.43,84.38,4.47463949]
[1771610255443,11.55317129,84.43,84.388,4.47463949]
[1771610255758,4.12456745,84.433,84.388,4.47463949]
[1771610255931,11.55317129,84.43,84.388,4.47463949]
[1771610257457,11.55317129,84.42,84.39,4.48277581]
[1771610257752,4.35144302,84.428,84.39,4.48277581]
[1771610258757,11.55317129,84.43,84.39,4.48277581]
[1771610258938,16.19459235,84.437,84.39,4.48277581]
[1771610259145,4.35144302,84.436,84.39,4.48277581]
[1771610259455,4.35144302,84.428,84.391,16.33238062]
[1771610260251,4.35144302,84.419,84.381,4.48277581]
[1771610260640,4.35144302,84.409,84.374,11.85197147]
[1771610260843,11.55317129,84.4,84.374,11.85197147]
[1771610261047,4.35144302,84.399,84.361,16.33659451]
[1771610261357,11.55317129,84.39,84.361,16.33659451]
[1771610261950,15.90461431,84.39,84.361,11.8538187]
[1771610262155,4.35144302,84.388,84.355,11.85465176]
[1771610262451,11.84988564,84.389,84.339,4.48277581]
[1771610262452,4.35144302,84.379,84.339,4.48277581]
[1771610262832,11.55317129,84.37,84.339,4.48277581]
[1771610263037,4.35144302,84.369,84.326,4.48277581]
[1771610263255,4.35144302,84.369,84.328,4.48277581]
[1771610263451,4.35144302,84.367,84.329,11.85831683]
[1771610263755,29.62471412,84.389,84.329,11.85831683]
[1771610263756,4.35144302,84.378,84.33,4.48277581]
[1771610263952,11.70248384,84.41,84.329,41.5041089]
[1771610263953,2.47215037,105.09,84.331,0.14216157]
[1771610264157,4.35144302,84.429,84.341,0.28432314]
[1771610264365,4.35144302,84.429,84.364,4.48277581]
[1771610264575,12.12039019,84.47,84.363,5.78734659]
[1771610264576,4.35144302,84.441,84.383,4.48277581]
[1771610264740,16.19232796,84.454,84.392,4.76709895]
[1771610265055,4.35144302,84.453,84.408,4.48277581]
[1771610265232,4.35144302,84.453,84.4,0.14216157]
[1771610265233,4.35144302,84.465,84.412,4.48277581]
[1771610265434,4.35144302,84.459,84.418,4.48277581]
[1771610265758,4.35144302,84.459,84.41,0.14216157]
[1771610265759,4.35144302,84.459,84.42,4.48277581]
[1771610265935,11.83852255,84.47,84.427,0.14216157]
[1771610266136,4.35144302,84.47,84.428,4.48277581]
[1771610266654,16.18996557,84.47,84.428,4.48277581]
[1771610266852,4.35144302,84.469,84.428,4.48277581]
[1771610268446,4.35144302,84.467,84.429,11.84427151]
[1771610270156,4.35144302,84.467,84.43,4.48277581]
[1771610271442,4.35144302,84.467,84.431,11.84399095]
[1771610271849,4.35144302,84.467,84.431,16.32676676]
[1771610272158,4.35144302,84.481,84.438,4.48277581]
[1771610272944,4.35144302,84.492,84.448,4.48277581]
[1771610273443,4.35144302,84.501,84.46,4.48277581]
[1771610273644,4.35144302,84.501,84.459,41.44022542]
[1771610273850,4.35144302,84.479,84.431,29.60997737]
[1771610274276,4.35144302,84.479,84.432,4.48277581]
[1771610274868,4.35144302,84.469,84.432,4.48277581]
[1771610275362,4.35144302,84.469,84.424,11.84497299]
[1771610275548,4.35144302,84.467,84.425,4.48277581]
[1771610276578,11.83814431,84.473,84.428,0.14216157]
[1771610276754,11.8376817,84.476,84.429,4.48277581]
[1771610277071,4.35144302,84.475,84.429,4.48277581]
[1771610278150,11.55317129,84.48,84.431,4.48277581]
[1771610278151,4.35144302,84.473,84.431,4.48277581]
[1771610279168,4.35144302,84.469,84.43,11.84413123]
[1771610279983,4.35144302,84.469,84.43,41.45445931]
[1771610280186,4.35144302,84.469,84.433,4.48277581]
[1771610280354,11.83880286,84.468,84.433,4.48277581]
[1771610280553,16.19024588,84.468,84.433,4.48277581]
[1771610280851,2.88067,104.75,84.432,41.45347735]
[1771610280852,4.35144302,84.509,84.439,4.48277581]
[1771610281174,4.35144302,84.499,84.439,4.48277581]
[1771610281351,4.35144302,84.518,84.449,4.48277581]
[1771610281556,4.35144302,84.518,84.457,4.48277581]
[1771610282163,4.35144302,84.516,84.465,4.48277581]
[1771610282352,4.35144302,84.516,84.469,4.48277581]
[1771610283358,4.35144302,84.516,84.477,4.48277581]
[1771610283564,4.35144302,84.516,84.469,4.48277581]
[1771610284575,0.1,84.52,84.469,4.48277581]
[1771610284782,4.45144302,84.55,84.472,0.14216157]
[1771610284989,4.45144302,84.55,84.494,4.62493738]
[1771610285161,4.45144302,84.55,84.512,0.14216157]
[1771610285359,4.45144302,84.55,84.512,0.42648471]
[1771610285559,4.45144302,84.55,84.512,4.90926052]
[1771610285761,0.1,84.55,84.512,4.90926052]
[1771610286496,4.25397015,84.55,84.512,4.48277581]
[1771610286688,4.25397015,84.55,84.513,41.41374699]
[1771610286982,4.15397015,84.549,84.513,11.83249914]
[1771610287164,4.32104669,84.548,84.513,11.83249914]
[1771610287478,4.32104669,84.529,84.493,11.83529996]
[1771610288265,4.32104669,84.529,84.494,4.26669323]
[1771610288578,4.32104669,84.539,84.494,4.26669323]
[1771610288786,4.32104669,84.527,84.482,11.83684098]
[1771610289190,11.83039939,84.528,84.465,4.26669323]
[1771610289191,4.32104669,84.509,84.465,4.26669323]
[1771610289386,4.32104669,84.527,84.472,0.42648471]
[1771610289577,4.32104669,84.527,84.479,4.26669323]
[1771610289766,4.32104669,84.519,84.467,4.26669323]
[1771610289967,4.32104669,84.499,84.448,4.26669323]
[1771610290267,88.72799544,84.528,84.468,4.26669323]
[1771610290268,4.32104669,84.509,84.468,4.26669323]
[1771610291164,4.32104669,84.509,84.469,41.43531946]
[1771610291361,11.83038444,84.529,84.478,4.26669323]
[1771610291565,4.32104669,84.528,84.478,4.26669323]
[1771610292065,4.32104669,84.528,84.469,45.70201269]
[1771610292066,4.32104669,84.519,84.469,45.70201269]
[1771610292493,4.32104669,84.509,84.469,45.70201269]
[1771610293982,4.32104669,84.509,84.47,4.26669323]
[1771610295293,616.95241945,84.95,84.46,0.14216157]
[1771610295294,11.55317129,84.54,84.478,4.26669323]
[1771610295583,4.32104669,84.539,84.488,4.26669323]
[1771610296572,4.32104669,84.529,84.488,4.26669323]
[1771610296799,4.32104669,84.519,84.477,0.42648471]
[1771610297004,4.32104669,84.519,84.477,4.69317794]
[1771610297208,4.32104669,84.529,84.479,4.69317794]
[1771610297909,4.32104669,84.527,84.479,4.69317794]
[1771610298111,4.32104669,84.537,84.479,4.69317794]
[1771610299191,11.8280479,84.545,84.487,4.26669323]
[1771610299494,4.32104669,84.539,84.499,4.26669323]
[1771610300181,4.32104669,84.539,84.488,4.26669323]
[1771610300384,0.1,84.55,84.49,4.26669323]
[1771610300588,0.1,84.55,84.497,4.26669323]
[1771610300885,0.1,84.55,84.527,4.26669323]
[1771610301084,0.1,84.55,84.529,4.26669323]
[1771610301285,0.1,84.55,84.531,4.26669323]
[1771610301919,4.32104669,84.571,84.537,4.26669323]
[1771610302129,11.82241915,84.586,84.539,4.26669323]
[1771610302130,4.32104669,84.585,84.539,4.26669323]
[1771610304629,4.32104669,84.585,84.541,4.26669323]
[1771610305095,4.32104669,84.583,84.541,4.26669323]
[1771610305296,11.82256691,84.584,84.54,41.40052046]
[1771610305297,4.32104669,84.579,84.54,41.40052046]